bitfinex-derivatives/quotes_ETHF0:USTF0_20250308
["timestamp","ask_amount","ask_price","bid_price","bid_amount"]
[1741405934296,0.00701262,2138.8,2138.5,0.7161]
[1741405934599,0.94238262,2138.8,2138.5,1.65156]
[1741405934800,0.00701262,2138.8,2138.5,0.7161]
[1741405935004,0.93542,2138.7,2138.5,0.7161]
[1741405935892,0.00701262,2138.8,2138.5,0.7161]
[1741405936099,0.93542,2138.7,2138.5,1.65159]
[1741405936300,0.93542,2138.7,2138.5,0.7161]
[1741405937297,0.93542,2138.7,2138.5,1.65157]
[1741405937491,0.00701262,2138.8,2138.5,3.9239]
[1741405937702,0.00701262,2138.8,2138.7,0.9354]
[1741405938000,0.00701262,2138.8,2138.7,0.9454]
[1741405938598,3.01513,2139.4,2138.7,6.34845]
[1741405938796,2.08,2139.4,2139.3,0.93514]
[1741405939201,2.08,2139.4,2139.1,0.93521]
[1741405939397,0.9352,2139.2,2139.1,0.02]
[1741405939598,0.93516,2139.3,2139.1,0.02]
[1741405939800,0.93519,2139.2,2139.1,0.02]
[1741405940001,3.02213262,2139.4,2139.1,0.02]
[1741405940397,0.94213262,2139.4,2139.2,0.93518]
[1741405940603,0.94211262,2139.4,2139.2,0.93518]
[1741405940903,0.94211262,2139.4,2139.3,0.6453]
[1741405941902,0.00701262,2139.4,2139.3,1.58044]
[1741405942107,0.00701262,2139.4,2139.3,4.86824]
[1741405943300,0.00701262,2139.4,2139.3,3.9331]
[1741405943600,0.00701262,2139.4,2139.3,4.86824]
[1741405944202,0.00701262,2139.4,2139.3,3.9331]
[1741405944507,0.94211262,2139.4,2139.3,0.7253]
[1741405944702,0.00701262,2139.4,2139.0,3.8512]
[1741405944903,0.93519,2139.2,2139.0,5.55375]
[1741405945507,0.93523,2139.1,2139.0,3.9751]
[1741405946602,1.2437,2139.3,2139.0,3.9751]
[1741405946809,0.94212262,2139.4,2139.2,0.93516]
[1741405947307,0.93517,2139.3,2139.1,0.93521]
[1741405947506,0.00701262,2139.4,2139.1,0.03]
[1741405947713,0.94213262,2139.4,2139.2,0.93519]
[1741405948004,0.93514,2139.3,2139.1,0.9352]
[1741405948202,0.93519,2139.2,2139.1,0.03]
[1741405949009,0.93523,2139.1,2139.0,3.8551]
[1741405949210,0.93523,2139.1,2139.0,3.8851]
[1741405949410,0.6163,2139.2,2139.0,3.8851]
[1741405949611,0.00701262,2139.4,2139.0,3.8851]
[1741405950204,0.00701262,2139.4,2139.0,4.82035]
[1741405950205,0.9352,2139.2,2139.0,4.82035]
[1741405950805,0.93516,2139.3,2139.1,0.93521]
[1741405951006,0.93516,2139.3,2139.1,0.94521]
[1741405951811,0.94213262,2139.4,2139.2,0.93519]
[1741405951999,0.94213262,2139.4,2139.0,3.8551]
[1741405952202,0.94213262,2139.4,2139.1,0.93519]
[1741405952400,0.94213262,2139.4,2139.2,0.93518]
[1741405952608,0.93515,2139.3,2139.1,0.93519]
[1741405952802,0.93521,2139.2,2139.1,0.01]
[1741405953009,0.93519,2139.2,2139.1,0.94523]
[1741405953202,0.93519,2139.2,2139.1,0.01]
[1741405953407,0.00701262,2139.4,2139.1,0.94523]
[1741405953716,0.93516,2139.3,2139.1,0.94523]
[1741405953907,0.93518,2139.3,2139.1,0.94523]
[1741405954112,0.00701262,2139.4,2139.0,3.2078]
[1741405954421,0.93523,2139.1,2139.0,3.2278]
[1741405954909,0.93523,2139.1,2139.0,0.02]
[1741405956116,0.00701262,2139.4,2139.0,0.02]
[1741405956318,0.93516,2139.3,2139.1,0.93519]
[1741405956514,0.93516,2139.3,2139.2,1.58649]
[1741405956710,0.93516,2139.3,2139.2,0.6513]
[1741405957116,0.93522,2139.2,2139.0,4.14305]
[1741405957318,0.93522,2139.2,2139.0,4.16305]
[1741405958918,0.00701262,2139.4,2139.0,3.2278]
[1741405959221,0.94214262,2139.4,2139.2,0.93517]
[1741405959619,0.94214262,2139.4,2139.2,0.95517]
[1741405959815,0.00701262,2139.4,2139.3,1.59614]
[1741405960020,0.94211262,2139.4,2139.3,1.292]
[1741405960214,0.94211262,2139.4,2139.0,3.2078]
[1741405960215,0.00701262,2139.4,2139.0,3.2078]
[1741405960414,0.94213262,2139.4,2139.2,0.93518]
[1741405960620,0.94213262,2139.4,2139.2,1.59698]
[1741405960918,0.93514,2139.3,2139.2,0.6618]
[1741405961117,0.94214262,2139.4,2139.2,1.59697]
[1741405961315,0.94214262,2139.4,2139.2,0.6618]
[1741405961519,0.94214262,2139.4,2139.3,0.93514]
[1741405961921,0.94214262,2139.4,2139.2,1.56696]
[1741405962111,0.94214262,2139.4,2139.2,1.59696]
[1741405963320,0.00701262,2139.4,2139.2,0.6618]
[1741405963523,0.93514,2139.3,2139.2,0.6618]
[1741405963713,0.00701262,2139.4,2139.2,1.59697]
[1741405963916,0.93514,2139.3,2139.2,0.6618]
[1741405964222,0.93514,2139.3,2139.2,0.6318]
[1741405964624,0.00701262,2139.4,2139.2,0.6318]
[1741405964820,0.00701262,2139.4,2139.2,1.56697]
[1741405965124,0.93514,2139.3,2139.2,0.6318]
[1741405966023,0.93514,2139.3,2139.2,1.56699]
[1741405966222,0.93514,2139.3,2139.2,0.6318]
[1741405967223,0.93514,2139.3,2139.2,1.56699]
[1741405968316,0.93514,2139.3,2139.2,0.6318]
[1741405968728,0.00701262,2139.4,2139.3,0.93514]
[1741405968924,0.00701262,2139.4,2139.3,1.62774]
[1741405970727,0.00701262,2139.4,2139.3,4.83554]
[1741405976026,0.6611,2139.7,2139.3,4.83554]
[1741405976027,3.01395,2139.8,2139.6,0.93498]
[1741405976421,3.01395,2139.8,2139.7,0.6031]
[1741405976623,5.39781,2139.9,2139.7,1.53805]
[1741405976822,4.4629,2139.9,2139.7,1.53805]
[1741405977127,5.39781,2139.9,2139.7,1.53805]
[1741405977430,0.93492,2139.8,2139.7,0.6031]
[1741405977728,2.19,2139.9,2139.7,1.53807]
[1741405977926,0.93492,2139.8,2139.7,1.53807]
[1741405978623,0.93492,2139.8,2139.7,0.6031]
[1741405980930,0.93497,2139.7,2139.6,3.21481262]
[1741405985534,0.93512,2139.4,2139.2,1.56697]
[1741405985732,0.6085,2139.3,2139.1,3.2078]
[1741405985938,1.58539,2139.2,2139.1,3.2078]
[1741405986934,0.93527,2139.0,2138.9,0.61301262]
[1741405987238,0.93527,2139.0,2138.9,0.05701262]
[1741405987427,0.93527,2139.0,2138.9,0.00701262]
[1741405987736,0.93546,2138.6,2138.4,4.14331]
[1741405987936,0.93546,2138.6,2138.4,5.86761]
[1741405988130,0.93543,2138.7,2138.4,5.86761]
[1741405988732,0.94239262,2138.8,2138.4,4.9321]
[1741405988939,0.00701262,2138.8,2138.7,0.9354]
[1741405989937,0.00701262,2138.8,2138.4,3.8621]
[1741405990139,0.00701262,2138.8,2138.4,5.0621]
[1741405990331,0.94241262,2138.8,2138.5,0.93548]
[1741405990535,0.94241262,2138.8,2138.6,0.93545]
[1741405990831,0.94241262,2138.8,2138.6,1.01544]
[1741405991031,0.94241262,2138.8,2138.6,0.08]
[1741405991732,0.9354,2138.7,2138.6,0.08]
[1741405992235,0.93549,2138.5,2138.4,3.2078]
[1741405992440,0.93554,2138.4,2138.3,0.00701262]
[1741405993235,3.01454,2138.4,2138.3,0.00701262]
[1741405993427,7.01454,2138.4,2138.3,0.00701262]
[1741405993634,4.41792,2138.4,2137.8,1.2392]
[1741405993834,0.93574,2138.0,2137.8,1.4792]
[1741405994137,3.2078,2138.3,2137.8,1.4792]
[1741405994443,0.93567,2138.1,2137.9,0.93575]
[1741405994640,0.93567,2138.1,2137.9,0.98575]
[1741405994942,3.2078,2138.3,2137.9,0.05]
[1741405995241,0.6067,2138.2,2137.9,0.05]
[1741405995543,5.062,2138.4,2137.9,0.98574]
[1741405995840,0.93563,2138.2,2137.9,0.98574]
[1741405996629,5.6687,2138.4,2137.9,0.05]
[1741405996833,2.079,2138.4,2138.0,0.9357]
[1741405997040,3.01456,2138.4,2138.0,1.1557]
[1741405997941,2.079,2138.4,2138.3,0.93558]
[1741405998136,0.6637,2138.5,2138.3,0.08]
[1741405998344,0.6637,2138.5,2138.3,0.7211]
[1741405998640,0.6637,2138.5,2138.3,1.347]
[1741405998942,2.079,2138.6,2138.4,0.93552]
[1741405999142,2.079,2138.6,2138.4,1.61682]
[1741405999541,0.67311262,2138.8,2138.6,0.93544]
[1741405999542,0.00701262,2138.8,2138.6,0.93544]
[1741405999741,0.94237262,2138.8,2138.7,0.6259]
[1741405999940,0.94237262,2138.8,2138.3,1.57665]
[1741405999941,0.93544,2138.7,2138.3,1.57665]
[1741406000139,0.94240262,2138.8,2138.4,0.93552]
[1741406000338,0.93541,2138.7,2138.4,0.09]
[1741406000543,0.94240262,2138.8,2138.5,0.93547]
[1741406000733,0.94240262,2138.8,2138.5,1.04547]
[1741406000938,0.94240262,2138.8,2138.5,4.25327]
[1741406001134,0.93542,2138.7,2138.5,3.3178]
[1741406001442,0.93545,2138.6,2138.5,3.2078]
[1741406001644,1.59085,2138.6,2138.5,3.2078]
[1741406003341,0.93544,2138.7,2138.5,4.17329]
[1741406003545,0.94239262,2138.8,2138.6,0.93545]
[1741406003742,0.00701262,2138.8,2138.7,0.9354]
[1741406003944,0.00701262,2138.8,2138.7,2.1776]
[1741406004436,0.00701262,2138.8,2138.7,1.2422]
[1741406004637,0.00701262,2138.8,2138.7,2.1776]
[1741406004837,3.2078,2139.3,2139.0,0.93526]
[1741406004838,2.079,2139.2,2139.0,0.93526]
[1741406005046,4.14297,2139.3,2139.1,0.6071]
[1741406006143,3.2078,2139.3,2139.1,0.6071]
[1741406006341,4.14297,2139.3,2139.1,0.6071]
[1741406006543,0.93517,2139.3,2139.1,0.6071]
[1741406006742,2.69361262,2139.4,2139.0,0.00701262]
[1741406007144,0.93523,2139.1,2139.0,0.00701262]
[1741406008450,7.2078,2139.1,2138.4,3.2078]
[1741406008651,0.93553,2138.5,2138.4,3.2078]
[1741406008847,3.2078,2138.8,2138.3,0.6211]
[1741406009152,0.93554,2138.4,2138.3,0.6511]
[1741406009448,4.41769,2138.6,2137.7,3.2078]
[1741406009649,0.93562,2138.2,2138.1,0.00701262]
[1741406014651,2.08601262,2138.4,2138.1,0.00701262]
[1741406014850,3.02156262,2138.4,2138.1,0.13701262]
[1741406015050,3.02156262,2138.4,2138.2,1.58809]
[1741406015255,3.02156262,2138.4,2138.2,1.62809]
[1741406015546,0.93558,2138.3,2138.2,0.6925]
[1741406016748,3.02158262,2138.4,2138.2,0.6925]
[1741406016944,0.93558,2138.3,2138.2,0.6925]
[1741406017348,0.93558,2138.3,2138.2,0.6525]
[1741406019343,2.08601262,2138.4,2138.1,0.00701262]
[1741406019549,0.93562,2138.2,2138.1,0.00701262]
[1741406020352,2.17082,2138.2,2138.1,0.00701262]
[1741406022548,0.93575,2137.9,2137.8,1.2773]
[1741406023058,0.93575,2137.9,2137.8,0.6489]
[1741406023351,0.9358,2137.8,2137.7,3.8367]
[1741406023554,0.9358,2137.8,2137.7,4.1567]
[1741406023745,4.443,2138.2,2137.7,3.5278]
[1741406023946,0.93578,2137.9,2137.7,4.46363]
[1741406024153,4.443,2138.2,2137.7,3.5278]
[1741406024355,0.9358,2137.8,2137.7,3.5278]
[1741406026754,0.9358,2137.8,2137.7,4.46364]
[1741406026960,0.93577,2137.9,2137.7,4.46364]
[1741406027143,4.443,2138.2,2137.9,0.93573]
[1741406027144,0.93569,2138.1,2137.9,0.93573]
[1741406027453,0.6138,2138.2,2137.9,0.95573]
[1741406027755,0.93567,2138.1,2138.0,1.3017]
[1741406028151,1.54945,2138.2,2138.0,2.2374]
[1741406028357,1.54945,2138.2,2138.0,1.3017]
[1741406028358,0.6138,2138.2,2138.0,1.3017]
[1741406028558,0.93567,2138.1,2138.0,1.3017]
[1741406030157,1.54944,2138.2,2138.0,2.2374]
[1741406030353,0.00701262,2138.4,2138.0,4.5695]
[1741406030546,0.00701262,2138.4,2138.3,0.93558]
[1741406030745,0.94256262,2138.4,2138.2,0.93561]
[1741406031152,0.00701262,2138.4,2138.2,0.93561]
[1741406031357,0.00701262,2138.4,2138.1,0.6404]
[1741406031652,0.93562,2138.2,2138.1,0.7104]
[1741406032054,0.93562,2138.2,2138.1,0.07]
[1741406032262,0.93567,2138.1,2138.0,1.3017]
[1741406034152,2.079,2138.2,2137.6,3.2078]
[1741406034354,0.93577,2137.9,2137.7,0.93584]
[1741406034549,0.93577,2137.9,2137.7,1.10584]
[1741406035055,2.079,2138.2,2137.7,1.10584]
[1741406035056,0.93575,2138.0,2137.7,1.10584]
[1741406035454,2.079,2138.2,2137.8,0.93577]
[1741406035657,0.93573,2138.0,2137.8,0.94577]
[1741406036165,0.93573,2138.0,2137.8,0.01]
[1741406036361,0.93573,2138.0,2137.8,0.9458]
[1741406036859,0.93575,2138.0,2137.8,0.01]
[1741406037063,2.079,2138.2,2137.8,0.01]
[1741406037263,0.93575,2137.9,2137.8,0.01]
[1741406037755,2.079,2138.2,2137.8,0.01]
[1741406037956,0.93575,2137.9,2137.8,0.01]
[1741406042058,0.93574,2138.0,2137.8,0.9458]
[1741406042259,0.93575,2137.9,2137.8,0.01]
[1741406043169,0.93574,2138.0,2137.8,0.9458]
[1741406043362,0.93575,2137.9,2137.8,0.9458]
[1741406043664,3.01465,2138.2,2138.0,0.9357]
[1741406043863,3.01465,2138.2,2138.0,0.9657]
[1741406044166,3.01465,2138.2,2138.1,1.2387]
[1741406048572,0.93565,2138.2,2138.1,1.2387]
[1741406053171,5.04668,2138.3,2137.7,4.14361]
[1741406053373,0.93577,2137.9,2137.7,4.80361]
[1741406053568,0.93577,2137.9,2137.7,3.8678]
[1741406053771,0.93577,2137.9,2137.7,4.80362]
[1741406055074,0.93579,2137.9,2137.7,4.80362]
[1741406057867,0.93575,2138.0,2137.8,0.93579]
[1741406058067,0.93575,2138.0,2137.8,1.01579]
[1741406059474,0.6359,2138.1,2137.8,0.08]
[1741406059677,0.93573,2138.0,2137.8,1.01578]
[1741406059877,0.6359,2138.1,2137.8,0.08]
[1741406060171,0.93565,2138.2,2138.0,0.93571]
[1741406060478,3.01465,2138.2,2138.1,0.93567]
[1741406060667,3.01465,2138.2,2137.7,3.2178]
[1741406060873,3.01465,2138.2,2138.1,1.55207]
[1741406061177,3.01465,2138.2,2138.1,0.6164]
[1741406064867,2.69591262,2138.4,2138.1,0.6164]
[1741406065173,0.93559,2138.3,2138.2,1.2655]
[1741406066266,0.93559,2138.3,2138.2,0.01]
[1741406073076,0.00701262,2138.4,2138.2,0.01]
[1741406073277,0.94258262,2138.4,2138.2,2.22871]
[1741406073477,0.93558,2138.3,2138.2,2.22871]
[1741406073672,0.93558,2138.3,2138.2,1.2931]
[1741406074381,0.93558,2138.3,2138.2,2.22872]
[1741406074983,0.93558,2138.3,2138.2,1.2931]
[1741406075381,0.00701262,2138.4,2138.3,0.93558]
[1741406075582,0.94257262,2138.4,2138.2,2.21871]
[1741406075782,0.94257262,2138.4,2138.2,2.23871]
[1741406076779,0.00701262,2138.4,2138.3,0.93558]
[1741406076982,0.00701262,2138.4,2138.3,4.14338]
[1741406077281,0.00701262,2138.4,2138.3,4.19338]
[1741406077877,2.078,2138.7,2138.6,0.93543]
[1741406078071,0.6355,2138.9,2138.8,0.93536]
[1741406078871,9.7784,2139.3,2138.7,1.9197]
[1741406079077,0.00701262,2139.1,2138.9,3.2078]
[1741406079382,0.93536,2138.9,2138.7,1.9197]
[1741406079581,0.93536,2138.8,2138.7,2.0397]
[1741406081881,1.278,2139.0,2138.7,2.0397]
[1741406082086,0.93532,2138.9,2138.7,2.0397]
[1741406082284,0.93536,2138.8,2138.7,2.0397]
[1741406090289,0.93535,2138.9,2138.7,2.9751]
[1741406090485,1.278,2139.0,2138.7,2.9751]
[1741406090789,0.93536,2138.8,2138.7,2.0397]
[1741406091290,0.9354,2138.7,2138.6,3.21481262]
[1741406091589,0.9354,2138.7,2138.6,3.27481262]
[1741406092291,0.93539,2138.8,2138.6,4.21024262]
[1741406092490,0.93539,2138.8,2138.6,1.00244262]
[1741406092791,0.9354,2138.7,2138.6,0.06701262]
[1741406093194,0.9354,2138.7,2138.6,0.00701262]
[1741406094101,1.5518,2138.7,2138.6,0.00701262]
[1741406095597,0.9354,2138.7,2138.6,0.00701262]
[1741406096199,0.93539,2138.8,2138.6,0.94244262]
[1741406096402,2.077,2138.9,2138.6,0.00701262]
[1741406097207,0.93538,2138.8,2138.6,0.94244262]
[1741406099006,3.01234,2138.9,2138.7,0.93539]
[1741406099204,3.01234,2138.9,2138.8,1.3075]
[1741406099401,3.01234,2138.9,2138.8,1.9262]
[1741406101308,0.9354,2138.7,2138.6,3.21481262]
[1741406101609,0.9354,2138.7,2138.6,0.00701262]
[1741406103205,1.547,2138.7,2138.6,0.00701262]
[1741406105307,4.6725424,2138.8,2138.6,0.94244262]
[1741406105505,4.6725424,2138.8,2138.7,0.9354]
[1741406105506,3.1023624,2138.8,2138.7,0.9354]
[1741406105706,4.0377224,2138.8,2138.7,1.3094]
[1741406105905,4.0377224,2138.8,2138.7,0.6565]
[1741406106107,0.9354,2138.7,2138.6,0.00701262]
[1741406106504,0.93533,2138.9,2138.7,0.93538]
[1741406106811,0.93533,2138.9,2138.8,0.6225]
[1741406107807,2.7392,2139.0,2138.8,0.6225]
[1741406108111,3.67449,2139.0,2138.8,1.55783]
[1741406109911,3.6745,2139.0,2138.8,1.55786]
[1741406110707,3.67448,2139.0,2138.8,1.55786]
[1741406110915,1.59748,2139.0,2138.8,1.55786]
[1741406112015,0.6622,2139.0,2138.8,0.6225]
[1741406112207,1.59748,2139.0,2138.8,1.55783]
[1741406117415,0.6622,2139.0,2138.8,0.6225]
[1741406117618,0.6622,2139.0,2138.9,1.57282]
[1741406117818,0.94226262,2139.1,2138.9,1.57282]
[1741406118012,0.00701262,2139.1,2138.9,0.6375]
[1741406118217,0.00701262,2139.1,2138.9,1.2572]
[1741406118413,0.00701262,2139.1,2139.0,0.93527]
[1741406118919,0.00701262,2139.1,2139.0,0.94527]
[1741406120411,3.63117,2139.5,2139.3,0.93513]
[1741406120619,0.6201,2139.5,2139.4,0.6676]
[1741406121020,1.55515,2139.5,2139.4,0.6676]
[1741406121316,0.6201,2139.5,2138.9,4.465]
[1741406121515,0.93519,2139.2,2139.0,1.60284]
[1741406121717,0.93519,2139.2,2139.0,1.61284]
[1741406123125,0.93515,2139.3,2139.1,0.93519]
[1741406123326,0.93515,2139.3,2139.1,1.00519]
[1741406123520,0.94212262,2139.4,2139.2,0.93515]
[1741406123721,0.00701262,2139.4,2139.0,0.6676]
[1741406123921,0.00701262,2139.4,2139.3,0.93514]
[1741406124324,0.00701262,2139.4,2139.3,2.17114]
[1741406124715,0.94211262,2139.4,2139.3,1.236]
[1741406126221,0.00701262,2139.4,2138.9,3.8275]
[1741406126527,0.00701262,2139.4,2139.0,0.93525]
[1741406126721,0.93522,2139.2,2139.0,0.99525]
[1741406126926,1.261,2139.1,2139.0,0.99525]
[1741406127127,0.93516,2139.3,2139.1,0.9352]
[1741406127327,0.00701262,2139.4,2139.2,0.93517]
[1741406127530,0.93514,2139.3,2139.2,0.93517]
[1741406128821,0.94214262,2139.4,2139.2,0.93517]
[1741406129534,0.00701262,2139.4,2139.1,2.2061]
[1741406129729,0.93519,2139.2,2139.1,1.2709]
[1741406132726,0.93527,2139.0,2138.9,3.2078]
[1741406132917,0.93527,2139.0,2138.9,3.3578]
[1741406136230,0.93527,2139.0,2138.9,4.29312]
[1741406137132,0.93527,2139.0,2138.9,3.3578]
[1741406140929,1.56025,2139.1,2138.9,4.29309]
[1741406141328,0.625,2139.1,2138.9,4.29309]
[1741406141529,1.56027,2139.1,2138.9,4.29311]
[1741406141927,0.625,2139.1,2138.9,3.3578]
[1741406142237,0.93527,2139.0,2138.9,3.3578]
[1741406142622,0.93527,2139.0,2138.9,4.29312]
[1741406142827,1.56025,2139.1,2138.9,4.29312]
[1741406143329,0.93519,2139.2,2139.1,0.93523]
[1741406143626,0.93516,2139.3,2139.1,0.93523]
[1741406143833,0.93516,2139.3,2139.1,2.18713]
[1741406145837,2.74571262,2139.4,2139.2,0.93518]
[1741406146038,3.68084262,2139.4,2139.1,2.1871]
[1741406146242,3.68084262,2139.4,2139.2,0.93518]
[1741406146738,3.68084262,2139.4,2139.3,0.6635]
[1741406149136,0.00701262,2139.4,2139.3,1.59864]
[1741406150035,0.00701262,2139.4,2139.3,0.6635]
[1741406150340,0.00701262,2139.4,2139.3,1.59864]
[1741406151643,0.00701262,2139.4,2139.3,1.61864]
[1741406153034,1.96310456,2139.7,2139.5,0.93503]
[1741406153234,0.93499,2139.7,2139.6,1.2229]
[1741406153440,0.93499,2139.7,2139.6,1.8827]
[1741406153740,2.075,2139.8,2139.6,1.8827]
[1741406153741,0.93494,2139.8,2139.6,2.8177]
[1741406154535,0.00701262,2139.9,2139.6,1.8827]
[1741406154839,0.00701262,2139.9,2139.8,0.93492]
[1741406156135,0.94192262,2139.9,2139.7,0.93495]
[1741406156338,0.93494,2139.8,2139.6,2.81769]
[1741406156537,0.93494,2139.8,2139.6,2.90769]
[1741406157739,0.00701262,2139.9,2139.6,2.90769]
[1741406157939,1.54663262,2139.9,2139.6,1.9727]
[1741406158243,0.93494,2139.8,2139.6,2.9077]
[1741406158547,1.54662262,2139.9,2139.6,2.9077]
[1741406158739,1.54662262,2139.9,2139.7,0.93496]
[1741406160143,0.61171262,2139.9,2139.6,1.8827]
[1741406160349,0.00701262,2139.9,2139.8,0.93492]
[1741406160543,0.00701262,2139.9,2139.6,1.8827]
[1741406160742,0.00701262,2139.9,2139.7,0.93493]
[1741406160946,0.00701262,2139.9,2139.8,0.93492]
[1741406165441,0.00701262,2139.9,2139.8,4.14272]
[1741406168747,3.2078,2140.4,2140.2,0.93473]
[1741406168955,3.0077,2140.4,2140.1,3.2078]
[1741406169250,2.59684185,2140.6,2140.3,0.93471]
[1741406169450,0.93462,2140.5,2140.3,0.93468]
[1741406169645,3.6451,2140.6,2140.3,0.93468]
[1741406170252,3.64511,2140.6,2140.3,0.9347]
[1741406170645,0.93462,2140.5,2140.3,0.9347]
[1741406171147,2.7105,2140.6,2140.3,0.9347]
[1741406171349,0.94156262,2140.7,2140.2,1.87871262]
[1741406171553,0.00701262,2140.7,2140.2,1.94871262]
[1741406171847,0.00701262,2140.7,2140.4,4.14243]
[1741406172250,0.00701262,2140.7,2140.5,0.6334]
[1741406172449,0.00701262,2140.7,2140.6,1.2304]
[1741406173051,0.94154262,2140.7,2140.6,1.2304]
[1741406175154,0.00701262,2140.7,2140.6,1.2304]
[1741406175456,5.64873055,2141.1,2140.6,1.3104]
[1741406175650,5.64873055,2141.1,2140.7,3.2078]
[1741406175651,0.93446,2140.9,2140.7,3.2078]
[1741406175852,0.93442,2141.0,2140.7,4.14232]
[1741406176052,0.93442,2141.0,2140.8,0.627]
[1741406176258,0.93444,2140.9,2140.8,0.627]
[1741406179962,0.93453,2140.7,2140.6,1.2304]
[1741406180153,0.93453,2140.7,2140.6,1.2804]
[1741406182658,4.84964317,2141.1,2140.2,0.08701262]
[1741406182659,2.072,2140.8,2140.2,0.00701262]
[1741406182864,0.93471,2140.3,2140.2,0.00701262]
[1741406183159,5.2798,2140.3,2139.9,0.6501]
[1741406183470,0.93501,2139.6,2139.5,2.072]
[1741406183763,0.93499,2139.7,2139.5,0.2]
[1741406183962,0.93497,2139.7,2139.5,1.79635]
[1741406184165,0.93497,2139.7,2139.6,0.6501]
[1741406187872,0.00701262,2139.8,2139.6,0.6501]
[1741406188359,0.00701262,2139.8,2139.7,0.6452]
[1741406188560,0.00701262,2139.8,2139.7,0.6952]
[1741406189566,0.94193262,2139.8,2139.7,0.6952]
[1741406189765,0.00701262,2139.8,2139.7,0.6952]
[1741406189967,0.94193262,2139.8,2139.7,0.6952]
[1741406191470,0.00701262,2139.8,2139.7,0.6952]
[1741406193272,0.00701262,2139.8,2139.7,1.63017]
[1741406193972,0.00701262,2139.8,2139.7,0.6952]
[1741406194175,0.00701262,2139.8,2139.7,1.63017]
[1741406195368,0.00701262,2139.8,2139.7,0.6952]
[1741406195570,0.94193262,2139.8,2139.7,0.6952]
[1741406196272,0.00701262,2139.8,2139.7,0.6952]
[1741406196673,0.00701262,2139.8,2139.7,1.63017]
[1741406197467,0.94193262,2139.8,2139.7,0.05]
[1741406197667,0.93497,2139.7,2139.6,3.2078]
[1741406197970,1.58907,2139.7,2139.6,3.2778]
[1741406199165,1.58907,2139.7,2139.6,3.2078]
[1741406205179,1.58907,2139.7,2139.5,1.59634]
[1741406205380,1.58907,2139.7,2139.5,1.74634]
[1741406209290,0.6541,2139.7,2139.5,1.74634]
[1741406209683,0.6541,2139.7,2139.5,0.8113]
[1741406209884,0.6541,2139.7,2139.6,0.93501]
[1741406210084,0.6541,2139.7,2139.5,1.59632]
[1741406210287,0.00701262,2139.8,2139.6,3.2078]
[1741406210585,0.00701262,2139.8,2139.7,0.93497]
[1741406210885,0.00701262,2139.8,2139.7,1.00497]
[1741406214088,2.22445,2140.2,2140.0,0.93479]
[1741406214289,0.6256,2140.4,2140.0,0.93479]
[1741406214290,5.54425,2140.6,2140.0,0.01]
[1741406214491,2.30259699,2140.5,2140.0,0.01]
[1741406214785,0.93468,2140.4,2140.2,0.93475]
[1741406214999,0.93467,2140.4,2140.2,0.93471]
[1741406215388,2.30259699,2140.5,2140.2,0.93471]
[1741406215389,1.28121262,2140.5,2140.2,1.2285]
[1741406215590,2.21587262,2140.5,2140.2,2.16322]
[1741406216297,1.28121262,2140.5,2140.2,2.16322]
[1741406216596,0.9347,2140.4,2140.2,1.2285]
[1741406217098,0.9347,2140.4,2140.2,2.16324]
[1741406217293,2.21587262,2140.5,2140.2,2.16324]
[1741406218494,1.28121262,2140.5,2140.2,2.16324]
[1741406218696,2.21585262,2140.5,2140.2,1.2285]
[1741406218896,2.21585262,2140.5,2140.3,0.9347]
[1741406219389,2.21585262,2140.5,2140.2,1.2285]
[1741406219590,2.21585262,2140.5,2140.3,0.9347]
[1741406219789,0.64291262,2140.5,2140.2,4.4363]
[1741406219991,0.00701262,2140.5,2140.4,0.93466]
[1741406220198,0.00701262,2140.5,2140.4,0.98466]
[1741406222599,0.00701262,2140.5,2140.4,0.93466]
[1741406223394,0.00701262,2140.5,2140.4,1.17466]
[1741406227497,0.9344,2141.0,2140.4,0.24]
[1741406227689,1.61229608,2141.1,2140.6,3.2078]
[1741406227892,0.93448,2140.9,2140.6,4.23236]
[1741406228591,0.93448,2140.9,2140.6,3.2978]
[1741406228795,0.6241,2140.8,2140.6,3.2978]
[1741406229197,0.6241,2140.8,2140.6,0.09]
[1741406229399,0.93453,2140.7,2140.5,0.65451262]
[1741406229603,1.54056,2140.7,2140.5,0.00701262]
[1741406229801,0.93457,2140.6,2140.5,0.00701262]
[1741406230503,1.54056,2140.7,2140.5,0.00701262]
[1741406231806,0.93457,2140.6,2140.5,0.00701262]
[1741406232601,0.606,2140.7,2140.5,0.00701262]
[1741406232807,0.606,2140.7,2140.5,0.94160262]
[1741406233002,6.1908,2141.4,2140.6,3.2078]
[1741406233203,0.6094,2141.0,2140.9,0.93442]
[1741406233407,0.6094,2141.0,2140.9,4.14222]
[1741406233708,2.19747,2141.3,2141.1,0.93433]
[1741406233910,1.8726,2141.3,2141.0,0.6469]
[1741406234107,2.8069,2141.3,2141.0,1.58128]
[1741406234410,0.93433,2141.2,2140.9,4.14222]
[1741406235101,1.8726,2141.3,2140.9,4.14222]
[1741406235503,0.93437,2141.1,2140.9,4.14222]
[1741406235705,1.8726,2141.3,2140.9,4.14222]
[1741406235906,0.6309,2141.0,2140.9,4.14222]
[1741406236211,0.6309,2141.0,2140.9,3.2078]
[1741406237004,0.6309,2141.0,2140.9,4.14224]
[1741406238012,1.2456,2141.3,2141.0,0.93438]
[1741406238209,1.58662,2141.2,2141.0,0.93438]
[1741406238904,1.58662,2141.2,2140.9,0.93441]
[1741406239106,0.6523,2141.2,2141.0,0.93439]
[1741406239307,1.58663,2141.2,2141.0,0.6283]
[1741406239899,0.6523,2141.2,2141.0,1.56269]
[1741406240305,1.58662,2141.2,2141.0,0.6283]